bitfinex/quotes_SOLUSD_20251119
["timestamp","ask_amount","ask_price","bid_price","bid_amount"]
[1763510708304,4.75774357,140.38,140.31,4.24]
[1763510708505,0.7,140.37,140.31,4.24]
[1763510708802,5.45774357,140.37,140.31,4.24]
[1763510708981,0.7,140.37,140.31,4.24]
[1763510709182,0.7,140.36,140.31,4.24]
[1763510709786,0.7,140.36,140.28,9.78882769]
[1763510710007,4.75774357,140.35,140.28,4.24]
[1763510710225,4.75774357,140.35,140.26,31.40899137]
[1763510710380,0.7,140.34,140.27,4.24]
[1763510710581,5.26863143,140.36,140.27,4.24]
[1763510710782,5.26863143,140.36,140.27,14.02882769]
[1763510710783,0.7,140.36,140.27,14.02882769]
[1763510711095,0.7,140.35,140.27,14.02882769]
[1763510711404,0.7,140.37,140.28,27.90978769]
[1763510711709,0.7,140.37,140.3,9.78882769]
[1763510713006,0.7,140.37,140.31,4.24]
[1763510714506,5.9674643,140.37,140.31,4.24]
[1763510714721,0.7,140.37,140.31,4.24]
[1763510714889,0.69,140.36,140.31,4.24]
[1763510715405,0.69,140.36,140.3,4.24]
[1763510715990,10.19534758,140.36,140.27,22.36096]
[1763510716203,4.93,140.36,140.27,22.36096]
[1763510716391,10.6961377,140.35,140.27,4.24]
[1763510716590,5.2629935,140.34,140.27,4.24]
[1763510716796,0.69,140.34,140.27,4.24]
[1763510717009,0.69,140.33,140.27,4.24]
[1763510718086,0.69,140.34,140.28,18.12096]
[1763510718308,9.99705674,140.37,140.29,18.12096]
[1763510718504,0.69,140.37,140.29,18.12096]
[1763510718712,4.24,140.38,140.29,18.12096]
[1763510718713,0.69,140.36,140.29,18.12096]
[1763510719013,0.69,140.36,140.29,22.85768795]
[1763510719191,0.69,140.36,140.3,4.24]
[1763510727014,0.69,140.36,140.3,26.05317746]
[1763510727917,0.69,140.36,140.3,21.81317746]
[1763510728119,0.69,140.36,140.28,4.24]
[1763510728437,23.54768795,140.36,140.27,18.12096]
[1763510728601,9.9922132,140.35,140.25,4.24]
[1763510728800,5.25393855,140.34,140.25,13.21672795]
[1763510729017,5.94393855,140.34,140.25,13.21672795]
[1763510729212,4.93,140.33,140.21,9.88882769]
[1763510729420,18.12096,140.31,140.22,18.12096]
[1763510729603,0.69,140.3,140.22,18.12096]
[1763510730521,0.69,140.3,140.21,21.88705006]
[1763510730826,0.69,140.3,140.21,43.33630469]
[1763510731030,0.69,140.3,140.22,4.24]
[1763510731203,5.41424446,140.3,140.21,21.88705006]
[1763510731400,18.81096,140.29,140.21,21.88705006]
[1763510731606,8.96044586,140.28,140.21,21.88705006]
[1763510731928,9.65044586,140.28,140.21,21.88705006]
[1763510732099,0.69,140.27,140.21,21.88705006]
[1763510734002,0.69,140.29,140.21,26.12705006]
[1763510734931,0.69,140.29,140.22,9.78882769]
[1763510737033,0.69,140.29,140.21,26.12705006]
[1763510738713,0.69,140.29,140.21,21.88705006]
[1763510739203,18.12096,140.28,140.21,21.88705006]
[1763510739532,4.24,140.27,140.21,0.1]
[1763510739714,4.93,140.27,140.21,0.1]
[1763510739918,0.69,140.26,140.21,0.1]
[1763510742216,0.69,140.28,140.21,0.1]
[1763510742620,0.69,140.28,140.21,4.34]
[1763510744317,0.69,140.3,140.22,4.24]
[1763510744838,0.69,140.3,140.22,18.12096]
[1763510745020,0.69,140.3,140.23,22.36096]
[1763510745714,0.69,140.3,140.21,9.88882769]
[1763510745918,0.69,140.3,140.22,4.24]
[1763510746436,0.69,140.3,140.21,0.1]
[1763510746437,5.91713591,140.3,140.21,0.1]
[1763510746639,18.12096,140.28,140.21,0.1]
[1763510747135,0.69,140.27,140.21,0.1]
[1763510752914,5.40100264,140.27,140.21,0.1]
[1763510753118,23.52196264,140.27,140.21,0.1]
[1763510753343,0.69,140.26,140.21,0.1]
[1763510753839,5.40078374,140.26,140.21,0.1]
[1763510754343,0.69,140.25,140.21,0.1]
[1763510761645,4.24,140.31,140.21,0.1]
[1763510761846,0.69,140.25,140.22,18.12096]
[1763510762155,0.69,140.3,140.22,18.12096]
[1763510762365,8.9548493,140.31,140.22,18.12096]
[1763510762366,0.69,140.29,140.22,18.12096]
[1763510765349,0.69,140.29,140.21,0.1]
[1763510766725,18.12096,140.27,140.21,0.1]
[1763510767133,0.69,140.26,140.21,0.1]
[1763510769259,0.69,140.26,140.21,21.55078831]
[1763510769429,0.69,140.26,140.21,0.1]
[1763510772456,5.4056575,140.26,140.21,0.1]
[1763510772644,0.69,140.26,140.21,0.1]
[1763510772846,0.67,140.25,140.21,0.1]
[1763510773046,4.7156575,140.24,140.21,0.1]
[1763510773253,0.67,140.25,140.21,0.1]
[1763510773553,5.39908965,140.24,140.21,0.1]
[1763510773756,4.72908965,140.23,140.21,0.1]
[1763510773940,4.72992281,140.22,140.2,0.1]
[1763510774253,5.39992281,140.22,140.2,0.1]
[1763510774441,0.67,140.21,140.2,0.1]
[1763510775255,5.39896899,140.21,140.2,0.1]
[1763510775442,0.67,140.21,140.2,0.1]
[1763510775632,5.39775783,140.21,140.2,0.1]
[1763510776033,4.72775783,140.21,140.2,0.1]
[1763510776261,0.67,140.23,140.2,0.1]
[1763510780148,4.72898249,140.22,140.2,0.1]
[1763510780347,0.67,140.23,140.2,0.1]
[1763510780549,0.67,140.22,140.2,0.1]
[1763510781556,4.72844543,140.21,140.2,0.1]
[1763510781950,5.39844543,140.21,140.2,0.1]
[1763510782264,0.67,140.21,140.2,0.1]
[1763510782845,5.39844543,140.21,140.2,0.1]
[1763510783045,0.67,140.21,140.2,0.1]
[1763510783241,10.65184608,140.23,140.2,0.1]
[1763510783465,0.67,140.23,140.2,0.1]
[1763510783669,0.67,140.24,140.2,0.1]
[1763510784564,5.90808517,140.29,140.2,0.1]
[1763510784768,14.89651417,140.28,140.2,0.21]
[1763510784947,4.73041542,140.27,140.2,0.21]
[1763510785265,0.67,140.26,140.2,0.21]
[1763510785449,0.67,140.26,140.2,0.1]
[1763510785655,5.40035467,140.26,140.2,0.1]
[1763510785856,0.67,140.26,140.2,0.1]
[1763510786054,0.67,140.25,140.2,0.1]
[1763510786267,0.67,140.25,140.2,0.21]
[1763510786651,0.67,140.25,140.2,4.94035467]
[1763510787065,0.67,140.25,140.2,4.83035467]
[1763510787267,0.67,140.25,140.2,0.1]
[1763510787466,0.67,140.25,140.2,0.21]
[1763510788548,0.67,140.25,140.2,0.1]
[1763510788749,5.40062049,140.25,140.2,0.1]
[1763510789052,4.73056536,140.24,140.2,0.1]
[1763510789257,5.40056536,140.24,140.2,0.1]
[1763510789474,4.73056536,140.26,140.2,0.21]
[1763510789769,0.67,140.27,140.2,0.21]
[1763510789973,5.92707696,140.27,140.2,0.21]
[1763510790271,0.67,140.27,140.2,0.21]
[1763510790571,5.40249327,140.26,140.2,0.21]
[1763510790746,0.67,140.26,140.2,0.21]
[1763510790948,0.67,140.25,140.2,0.1]
[1763510791370,4.73182876,140.24,140.2,0.1]
[1763510791567,5.92756794,140.25,140.2,0.1]
[1763510791568,0.67,140.25,140.2,0.1]
[1763510791874,10.65794183,140.24,140.2,0.1]
[1763510792172,9.98794183,140.23,140.2,0.1]
[1763510792376,4.73137014,140.22,140.2,0.1]
[1763510792686,0.67,140.22,140.2,0.1]
[1763510792874,0.67,140.21,140.2,0.1]
[1763510796564,22.36096,140.24,140.2,0.1]
[1763510796774,0.67,140.22,140.2,0.1]
[1763510797357,4.72812545,140.21,140.2,0.1]
[1763510797784,5.39812545,140.21,140.2,0.1]
[1763510797982,0.67,140.21,140.2,0.1]
[1763510798372,5.39812545,140.21,140.2,0.1]
[1763510798569,0.67,140.21,140.2,0.1]
[1763510798775,22.36096,140.24,140.2,0.1]
[1763510798975,5.39597072,140.23,140.2,0.1]
[1763510799181,0.67,140.23,140.2,0.1]
[1763510799377,0.67,140.22,140.2,0.1]
[1763510800274,5.39658433,140.22,140.2,0.1]
[1763510800469,0.67,140.22,140.2,0.1]
[1763510800683,0.67,140.21,140.2,0.1]
[1763510800885,0.67,140.22,140.2,0.1]
[1763510801067,5.92123542,140.23,140.2,0.1]
[1763510801267,4.72654388,140.22,140.2,0.1]
[1763510801466,0.67,140.22,140.2,0.1]
[1763510801675,0.67,140.21,140.2,0.1]
[1763510803376,4.72558012,140.23,140.2,0.1]
[1763510803576,0.7,140.23,140.2,0.1]
[1763510803771,0.7,140.22,140.2,0.1]
[1763510806490,5.42603367,140.22,140.2,0.1]
[1763510806691,0.7,140.22,140.2,0.1]
[1763510806882,0.7,140.21,140.2,0.1]
[1763510809375,5.42661276,140.23,140.2,0.1]
[1763510809593,0.7,140.23,140.2,0.1]
[1763510809782,0.7,140.22,140.2,0.1]
[1763510809978,5.90808517,140.27,140.2,0.1]
[1763510810182,0.7,140.24,140.2,0.1]
[1763510813510,0.7,140.24,140.2,0.1]
[1763510815170,0.7,140.24,140.2,4.34]
[1763510815369,0.7,140.24,140.2,0.1]
[1763510815791,5.90808517,140.28,140.2,18.33096]
[1763510816007,9.67200602,140.27,140.21,0.11]
[1763510816294,4.94,140.27,140.21,0.11]
[1763510816478,0.7,140.26,140.22,9.67200602]
[1763510816898,0.7,140.26,140.2,0.1]
[1763510817076,4.73112668,140.25,140.2,0.1]
[1763510817396,5.95665905,140.26,140.2,0.1]
[1763510817397,0.7,140.26,140.2,0.1]
[1763510817602,5.43120468,140.25,140.2,0.1]
[1763510817897,0.7,140.25,140.21,5.90808517]
[1763510818099,0.7,140.24,140.21,5.90808517]
[1763510819677,0.7,140.24,140.2,0.1]
[1763510819878,0.7,140.24,140.2,6.00808517]
[1763510820696,4.73238788,140.23,140.2,6.00808517]
[1763510820920,8.97238788,140.23,140.2,0.1]
[1763510821110,0.7,140.22,140.2,0.1]
[1763510823503,4.94,140.23,140.2,0.1]
[1763510823709,4.24,140.23,140.2,0.1]
[1763510823912,0.7,140.22,140.2,0.1]
[1763510826717,0.7,140.25,140.2,0.1]
[1763510826910,0.7,140.25,140.2,0.21]
[1763510827113,5.43411691,140.25,140.21,4.73364636]
[1763510827307,4.24,140.26,140.21,4.84364636]
[1763510827522,0.7,140.27,140.22,0.11]
[1763510828013,5.43517185,140.27,140.22,0.11]
[1763510828426,0.7,140.26,140.22,0.11]
[1763510828920,0.7,140.27,140.22,0.11]
[1763510829134,0.7,140.26,140.21,4.73364636]
[1763510829513,0.7,140.26,140.21,4.84364636]
[1763510830424,5.43403229,140.26,140.21,4.84364636]
[1763510830730,0.7,140.26,140.21,4.84364636]
[1763510830914,0.7,140.25,140.21,4.73364636]
[1763510832609,0.7,140.25,140.21,4.84364636]
[1763510833212,0.7,140.25,140.21,4.73364636]
[1763510834036,0.7,140.25,140.21,4.84364636]
[1763510834734,0.7,140.25,140.21,0.11]
[1763510834934,0.7,140.25,140.22,4.73493387]
[1763510835121,5.43438402,140.27,140.22,4.84493387]
[1763510835317,4.73470871,140.27,140.23,0.11]
[1763510835515,0.7,140.29,140.23,0.11]
[1763510835837,4.73470871,140.28,140.22,18.23096]
[1763510836032,4.73470871,140.28,140.22,0.11]
[1763510836219,0.7,140.27,140.24,7.88447001]
[1763510839214,10.69077706,140.27,140.24,7.88447001]
[1763510839416,0.7,140.27,140.2,0.21]
[1763510839621,5.43394224,140.26,140.21,4.73394224]
[1763510839821,0.7,140.26,140.21,4.73394224]
[1763510840021,0.7,140.25,140.21,4.73394224]
[1763510840422,0.7,140.25,140.21,4.84394224]
[1763510841014,9.99245525,140.28,140.2,0.1]
[1763510841213,0.7,140.28,140.22,0.11]
[1763510841439,5.43394224,140.28,140.22,21.55925463]
[1763510841618,0.7,140.28,140.22,21.55925463]
[1763510842927,0.7,140.28,140.22,21.44925463]
[1763510843133,0.7,140.28,140.23,0.11]
[1763510844434,0.7,140.28,140.22,21.44925463]
[1763510844635,0.7,140.28,140.22,21.55925463]
[1763510845948,0.7,140.28,140.22,0.11]
[1763510846141,0.7,140.28,140.23,4.73212354]
[1763510847330,0.7,140.28,140.23,4.84212354]
[1763510847646,0.7,140.28,140.21,4.24]
[1763510847854,0.7,140.28,140.21,4.35]
[1763510848454,0.7,140.28,140.24,4.73212354]
[1763510850122,4.73212354,140.3,140.24,4.73212354]
[1763510850339,0.7,140.29,140.25,0.11]
[1763510851656,0.7,140.29,140.26,4.73212354]
[1763510852548,0.7,140.31,140.26,4.84212354]
[1763510852928,0.7,140.31,140.26,0.11]
[1763510853127,0.7,140.31,140.27,18.12096]
[1763510853958,5.4296437,140.31,140.27,18.12096]
[1763510854159,0.7,140.31,140.27,18.12096]
[1763510854347,0.7,140.3,140.27,18.12096]
[1763510856333,5.4296437,140.3,140.22,22.47096]
[1763510856669,4.94,140.3,140.24,18.12096]
[1763510856839,0.7,140.29,140.24,18.12096]
[1763510858886,4.72656164,140.28,140.23,18.12096]
[1763510859374,5.42656164,140.27,140.2,0.1]
[1763510859579,0.7,140.26,140.2,0.1]
[1763510859750,0.7,140.26,140.21,4.72656164]
[1763510864570,0.7,140.26,140.21,26.19370491]
[1763510864950,0.7,140.26,140.21,21.46714327]
[1763510865152,0.7,140.26,140.22,10.14820205]
[1763510866552,5.42656164,140.26,140.22,10.14820205]
[1763510866880,0.7,140.26,140.22,10.14820205]
[1763510867049,0.7,140.25,140.22,10.14820205]
[1763510871756,0.7,140.25,140.2,0.1]
[1763510871757,9.9990027,140.24,140.2,0.1]
[1763510872090,9.99769019,140.23,140.2,0.1]
[1763510872253,4.7358709,140.22,140.2,0.1]
[1763510872457,0.7,140.21,140.2,0.1]
[1763510873886,0.7,140.21,140.2,6.00820205]
[1763510874084,0.7,140.21,140.2,0.1]
[1763510875766,0.7,140.21,140.2,4.83215251]
[1763510877385,0.7,140.21,140.2,0.1]
[1763510880083,4.94,140.21,140.2,0.1]
[1763510881865,10.18368,140.21,140.2,0.1]
[1763510882387,4.94,140.21,140.2,0.1]
[1763510882786,10.181372,140.21,140.2,0.1]
[1763510884668,4.94,140.21,140.2,0.1]
[1763510885784,10.17420551,140.21,140.2,0.1]
[1763510886585,4.94,140.21,140.2,0.1]
[1763510894098,23.06096,140.21,140.2,0.1]
[1763510894276,27.79311251,140.21,140.2,0.1]
[1763510895300,33.01868885,140.21,140.2,0.1]
[1763510898785,5.43215251,140.21,140.2,0.1]
[1763510898981,4.94,140.21,140.2,0.1]
[1763510899501,0.66,140.23,140.2,0.1]
[1763510899684,4.9,140.22,140.2,0.1]
[1763510900300,4.24,140.22,140.2,0.1]
[1763510901603,4.24,140.22,140.2,0.21]
[1763510902494,4.24,140.22,140.2,0.1]
[1763510903698,4.24,140.22,140.2,0.21]
[1763510904088,4.24,140.22,140.2,4.92011841]
[1763510906297,4.24,140.22,140.2,0.21]
[1763510906598,4.24,140.22,140.2,4.92011841]
[1763510907094,4.24,140.22,140.2,0.21]
[1763510907606,4.24,140.22,140.2,0.1]
[1763510909914,4.24,140.22,140.2,0.21]
[1763510910611,4.24,140.22,140.2,0.1]
[1763510911187,4.92,140.22,140.2,0.1]
[1763510912512,4.24,140.22,140.2,0.1]
[1763510912722,0.68,140.21,140.2,0.1]
[1763510914814,4.24,140.22,140.2,0.1]
[1763510915018,4.24,140.22,140.2,0.21]
[1763510915218,4.24,140.22,140.2,0.1]
[1763510915421,4.24,140.22,140.2,0.21]
[1763510915821,4.24,140.22,140.2,0.1]
[1763510916315,8.96007341,140.22,140.2,0.1]
[1763510921401,4.72007341,140.21,140.2,0.1]
[1763510922139,5.40007341,140.21,140.2,0.1]
[1763510922623,4.72007341,140.21,140.2,0.1]
[1763510923400,5.40007341,140.21,140.2,0.1]
[1763510923601,0.68,140.21,140.2,0.1]
[1763510924019,5.40007341,140.21,140.2,0.1]
[1763510924927,10.65165244,140.21,140.2,0.1]
[1763510928712,16.55095946,140.21,140.2,0.1]
[1763510929028,10.65165244,140.21,140.2,0.1]
[1763510930812,26.33978715,140.21,140.2,0.1]
[1763510933940,20.44048013,140.21,140.2,0.1]
[1763510934245,26.33978715,140.21,140.2,0.1]
[1763510934547,20.44048013,140.21,140.2,0.1]
[1763510934937,26.33978715,140.21,140.2,0.1]
[1763510935857,26.33868918,140.21,140.2,0.1]
[1763510937235,26.34571737,140.21,140.14,0.11]
[1763510937439,10.65055447,140.2,140.14,0.11]
[1763510937647,14.21055447,140.19,140.14,0.11]
[1763510937952,10.65055447,140.18,140.14,0.11]
[1763510938154,4.72007341,140.17,140.14,0.11]
[1763510938456,4.24,140.16,140.14,0.11]
[1763510938654,4.24,140.16,140.13,31.30682383]
[1763510938854,4.24,140.16,140.13,21.51799614]
[1763510939058,4.24,140.16,140.13,0.11]
[1763510939556,0.68,140.15,140.12,15.6951629]
[1763510939943,8.96007341,140.16,140.12,0.11]
[1763510940148,4.92,140.16,140.12,0.11]
[1763510940654,9.64007341,140.16,140.12,0.11]
[1763510940831,4.92,140.16,140.12,0.11]
[1763510944165,0.68,140.15,140.12,0.11]
[1763510944753,4.92,140.16,140.12,0.11]
[1763510945163,4.24,140.16,140.12,0.11]
[1763510946045,4.92,140.16,140.12,0.11]
[1763510949544,4.24,140.16,140.12,0.11]
[1763510949746,4.92,140.16,140.12,0.11]
[1763510951156,4.24,140.16,140.12,0.11]
[1763510951359,4.92,140.16,140.12,0.11]
[1763510952048,4.24,140.16,140.08,20.97055323]
[1763510952259,0.68,140.15,140.1,18.12096]
[1763510952556,18.80096,140.15,140.08,0.11]
[1763510952863,4.72007341,140.14,140.09,4.72007341]
[1763510953059,4.24,140.13,140.07,0.11]
[1763510953357,4.24,140.13,140.07,4.72007341]
[1763510953358,4.91,140.13,140.07,4.72007341]
[1763510953549,0.67,140.12,140.07,4.72007341]
[1763510953959,0.67,140.12,140.08,0.11]
[1763510954343,0.67,140.12,140.07,4.72007341]
[1763510954542,4.24,140.11,140.07,4.83007341]
[1763510955065,0.67,140.11,140.07,4.83007341]
[1763510955275,4.91,140.11,140.07,4.83007341]
[1763510958470,0.67,140.1,140.07,4.83007341]
[1763510959859,4.24,140.11,140.07,4.83007341]
[1763510960040,4.91,140.11,140.07,4.83007341]
[1763510960963,4.91,140.11,140.06,2.03593088]
[1763510960964,0.67,140.1,140.06,2.03593088]
[1763510961164,4.91,140.1,140.06,2.03593088]
[1763510961565,0.67,140.09,140.06,2.03593088]
[1763510971150,104.3,140.18,140.07,0.11]
[1763510971459,4.89,140.14,140.07,21.58535702]
[1763510971958,0.65,140.13,140.08,0.11]
[1763510972157,110.20633521,140.18,140.08,0.11]
[1763510972158,5.90633521,140.21,140.08,0.11]
[1763510972358,9.95116108,140.2,140.1,18.12096]
[1763510972562,4.24,140.19,140.11,9.89882769]
[1763510972763,0.65,140.23,140.13,9.78882769]
[1763510972969,4.24,140.22,140.14,0.11]
[1763510973888,4.89,140.22,140.15,9.78882769]
[1763510974380,4.89,140.22,140.16,0.11]
[1763510975482,4.24,140.24,140.16,0.11]
[1763510975657,4.24,140.24,140.17,9.78882769]
[1763510976157,4.24,140.24,140.18,0.11]
[1763510976779,4.89,140.24,140.19,15.6951629]
[1763510977289,4.89,140.24,140.2,0.11]
[1763510977465,4.24,140.24,140.19,15.6951629]
[1763510977778,0.65,140.23,140.19,0.11]
[1763510977979,4.24,140.24,140.19,0.11]
[1763510978276,4.24,140.25,140.19,0.11]
[1763510978450,4.89,140.25,140.19,0.11]
[1763510978657,0.65,140.24,140.19,0.11]
[1763510978876,0.65,140.24,140.18,0.11]
[1763510979076,0.65,140.24,140.16,21.71240743]
[1763510979283,0.65,140.24,140.19,18.12096]
[1763510979594,0.65,140.24,140.2,0.11]
[1763510979888,4.89,140.24,140.2,0.11]
[1763510980453,4.89,140.24,140.19,18.12096]
[1763510980704,4.24,140.24,140.19,18.23096]
[1763510980854,4.89,140.24,140.2,0.11]
[1763510981268,4.89,140.24,140.19,18.12096]
[1763510981467,4.89,140.24,140.19,18.23096]
[1763510981686,0.65,140.23,140.19,18.12096]
[1763510983209,18.12096,140.26,140.19,18.12096]
[1763510983210,5.90633521,140.3,140.19,18.12096]
[1763510983363,0.67,140.25,140.2,0.11]
[1763510983563,4.91,140.25,140.2,0.11]
[1763510983962,0.67,140.25,140.21,9.78882769]
[1763510984168,4.24,140.27,140.21,9.78882769]
[1763510984378,4.91,140.27,140.22,0.11]
[1763510984717,4.24,140.27,140.22,0.11]
[1763510984872,0.67,140.26,140.22,0.11]
[1763510985071,0.67,140.26,140.23,9.78882769]
[1763510988264,4.24,140.27,140.23,9.78882769]
[1763510988480,4.24,140.27,140.24,0.11]
[1763510989079,4.24,140.27,140.24,9.89882769]
[1763510990094,4.24,140.27,140.24,0.11]
[1763510990296,4.24,140.27,140.25,18.12096]
[1763510990627,4.24,140.27,140.24,0.11]
[1763510990924,4.24,140.27,140.23,0.11]
[1763510991092,4.24,140.27,140.24,0.11]
[1763510991488,4.24,140.27,140.25,18.12096]
[1763510993216,0.67,140.31,140.26,0.11]
[1763510993529,0.2,140.35,140.26,0.11]
[1763510993530,4.24,140.33,140.26,0.11]
[1763510993699,4.91,140.33,140.26,0.11]
[1763510994020,0.67,140.32,140.26,0.11]
[1763510995622,0.67,140.32,140.27,18.12096]
[1763510996002,0.67,140.32,140.28,0.11]
[1763510996704,4.24,140.33,140.28,0.11]
[1763510997086,0.67,140.34,140.28,0.11]
[1763510998895,0.67,140.34,140.28,4.35]
[1763510999509,0.67,140.34,140.29,4.44]
[1763510999908,0.2,140.35,140.3,0.11]
[1763511000212,0.2,140.35,140.3,28.01978769]
[1763511000418,0.2,140.35,140.31,0.11]
[1763511000621,0.2,140.35,140.32,9.78882769]
[1763511001121,0.2,140.35,140.33,0.11]
[1763511001297,0.87,140.35,140.33,2.85765315]
[1763511002015,0.67,140.34,140.33,2.85765315]
[1763511002511,0.67,140.34,140.29,21.43562506]
[1763511002705,0.67,140.34,140.3,2.85867428]
[1763511004114,18.12096,140.32,140.3,2.85867428]
[1763511004625,0.67,140.31,140.3,2.85867428]
[1763511006006,4.44,140.35,140.3,2.85867428]
[1763511006205,18.12096,140.32,140.3,2.85867428]
[1763511006630,18.12096,140.32,140.24,18.12096]
[1763511006631,0.67,140.31,140.24,0.67]
[1763511007531,0.67,140.31,140.28,18.12096]
[1763511008802,4.91,140.31,140.28,18.12096]
[1763511009435,0.67,140.3,140.28,18.12096]
[1763511010729,4.91,140.31,140.28,18.12096]
[1763511011106,0.67,140.31,140.28,18.12096]
[1763511011321,0.87,140.35,140.29,0.67]
[1763511011910,0.2,140.35,140.29,0.67]
[1763511012332,0.67,140.34,140.29,0.67]
[1763511013039,0.2,140.35,140.3,2.85847]
[1763511013233,0.86,140.35,140.3,2.85847]
[1763511013438,0.2,140.35,140.31,0.72]
[1763511014345,0.86,140.35,140.32,9.77589627]
[1763511016144,0.66,140.34,140.32,9.77589627]
[1763511017349,0.66,140.34,140.3,0.72]
[1763511019222,5.4366419,140.35,140.3,0.72]
[1763511019427,4.71509373,140.34,140.3,0.72]
[1763511019745,0.66,140.34,140.3,0.72]
[1763511019949,5.43889968,140.35,140.3,0.72]
[1763511020151,4.71455297,140.34,140.3,0.72]
[1763511020334,0.2,140.35,140.3,0.72]
[1763511021638,0.91,140.35,140.3,0.72]
[1763511022141,0.71,140.34,140.3,0.72]
[1763511022752,0.71,140.34,140.29,0.66]
[1763511023336,5.44066452,140.35,140.29,0.66]
[1763511023557,0.2,140.35,140.29,0.66]
[1763511024950,0.91,140.35,140.29,0.66]
[1763511025251,18.12096,140.31,140.25,0.66]
[1763511025431,22.36096,140.31,140.23,5.1]
[1763511025635,5.42805207,140.3,140.23,0.66]
[1763511025846,18.83096,140.3,140.22,14.02882769]
[1763511026030,0.71,140.29,140.24,0.66]
[1763511026231,5.42946195,140.29,140.24,0.66]
[1763511027230,0.71,140.29,140.24,0.66]
[1763511027430,5.43169341,140.29,140.24,0.66]
[1763511027749,5.43169341,140.29,140.22,14.68882769]
[1763511027936,0.71,140.28,140.22,10.44882769]
[1763511028137,0.71,140.28,140.23,0.66]
[1763511028951,5.4338675,140.28,140.23,0.66]
[1763511029150,4.7238675,140.29,140.23,0.66]
[1763511029339,0.71,140.3,140.24,28.62285101]
[1763511029340,4.7238675,140.3,140.24,28.62285101]
[1763511029533,4.24,140.31,140.25,4.24]
[1763511029734,4.24,140.31,140.26,0.66]
[1763511029933,8.9638675,140.31,140.26,0.66]
[1763511030145,0.71,140.3,140.26,0.66]
[1763511034255,18.83096,140.3,140.23,0.66]
[1763511034554,18.83096,140.3,140.23,18.78096]
[1763511034854,0.71,140.29,140.23,18.78096]
[1763511035259,0.71,140.29,140.23,0.66]
[1763511040842,18.12096,140.3,140.23,0.66]
[1763511041172,0.71,140.32,140.24,27.90978769]
[1763511041358,6.04334924,140.35,140.24,27.90978769]
[1763511041359,14.94402916,140.33,140.24,27.90978769]
[1763511041533,5.26052513,140.32,140.25,0.66]
[1763511041737,10.70402916,140.32,140.25,0.66]
[1763511041963,10.70402916,140.32,140.25,4.9]
[1763511041964,5.44350403,140.32,140.25,4.9]
[1763511042143,0.71,140.32,140.25,0.66]
[1763511042358,0.66,140.32,140.26,0.71]
[1763511043042,0.66,140.32,140.26,4.95]
[1763511043543,0.66,140.32,140.27,0.71]